Cogmind - Beta 11.1 @@@ ROGUE MODE // 2022.11.16 @ 00:09:02 Player: Serom_69 Result: Destroyed by G-47 Trooper with Particle Gun Performance ------------- Evolutions (2) 1000 Regions Visited (3) 600 Robots Destroyed (46) 230 Value Destroyed (1068) 1068 Prototype IDs (2) 40 Alien Tech Used (0) 0 Bonus (65) 65 TOTAL SCORE: 3003 Bonus ------- High Alert Combat Kills 65 Cogmind --------- Core Integrity 0/550 Matter 181/300 Energy 10/100 System Corruption 0% Temperature Cool (9) Movement Core (100) Ox1 Location -8/Materials Parts ------- > --- POWER (1) -------- (None) > --- PROPULSION (3) --- (None) > --- UTILITY (4) ------ Large Storage Unit Advanced Weight Redist. System Hacking Suite > --- WEAPON (3) ------- (None) > --- INVENTORY (15) --- Ion Engine Ion Engine Light Deuterium Engine Armored Treads Light Armor Plating Light Armor Plating Medium Armor Plating Insulated Plating Peak State ------------ > --- POWER ------------ Light Nuclear Core > --- PROPULSION ------- Aluminum Leg Improved Aluminum Leg Improved Aluminum Leg > --- UTILITY ---------- Large Storage Unit Advanced Weight Redist. System Light Armor Plating Hacking Suite > --- WEAPON ----------- Minigun Gauss Rifle Mini Grenade Launcher > --- INVENTORY -------- Ion Engine Ion Engine Ion Engine Deuterium Engine Armored Treads Aluminum Leg Aluminum Leg Light Armor Plating Light Armor Plating Medium Armor Plating Medium Laser Beam Rifle Scythe [Rating: 27] Favorites ----------- Power Ion Engine Engine Ion Engine Power Core Light Nuclear Core Propulsion Aluminum Leg Leg Aluminum Leg Wheel Wheel Utility Large Storage Unit Device Shield Generator Storage Large Storage Unit Hackware Hacking Suite Protection Medium Armor Plating Weapon Minigun Energy Gun Medium Laser Energy Cannon Light EM Pulse Cannon Ballistic Gun Minigun Launcher Mini Grenade Launcher Impact Weapon Heavy Mace Slashing Weapon Scythe Build | -11 -10 -9 -8 ------- Run | Scr Mat Mat Mat Slots Evolved 4 | . . 2 2 Power . | . . . . Propulsion 1 | . . 1 . Utility 2 | . . 1 1 Weapon 1 | . . . 1 Parts Attached 54 | 4 2 22 26 Power 6 | 1 . 2 3 Engine 5 | 1 . 2 2 Core 1 | . . . 1 Reactor . | . . . . Propulsion 13 | 2 . 5 6 Treads . | . . . . Leg 11 | . . 5 6 Wheel 2 | 2 . . . Hover . | . . . . Flight . | . . . . Utility 10 | 1 . 4 5 Device 2 | . . 1 1 Storage 2 | 1 . 1 . Processor . | . . . . Hackware 1 | . . . 1 Protection 5 | . . 2 3 Artifact . | . . . . Weapon 25 | . 2 11 12 Energy Gun 4 | . 1 . 3 Energy Cannon 4 | . . 4 . Ballistic Gun 9 | . 1 4 4 Ballistic Cannon . | . . . . Launcher 5 | . . 3 2 Special Weapon . | . . . . Impact Weapon 2 | . . . 2 Slashing Weapon 1 | . . . 1 Piercing Weapon . | . . . . Special Melee Weapon . | . . . . Unidentified Prototypes . | . . . . Parts Lost 22 | . . 3 19 Power 3 | . . . 3 Propulsion 6 | . . . 6 Utility 5 | . . 2 3 Weapon 8 | . . 1 7 Highest Loss Streak 10 | . . 1 10 To Critical Strikes 1 | . . . 1 Average Slot Usage (%) 88 | . 85 93 81 Engine 9 | . 14 11 4 Core 1 | . . . 3 Leg 24 | . . 33 22 Wheel 3 | . 28 . . Device 4 | . . 6 3 Storage 10 | . 14 11 9 Hackware 1 | . . . 3 Protection 8 | . . 9 10 Energy Gun 3 | . 14 2 1 Energy Cannon 2 | . . 4 2 Ballistic Gun 10 | . 14 10 9 Launcher 4 | . . 4 5 Impact Weapon 1 | . . . 2 Naked Turns . | . . . . Heaviest Build 43 | 10 14 43 42 Greatest Support 45 | 26 26 33 45 Greatest Overweight (x) 2 | . . 1 2 Average Overweight (x) . | . . . . Largest Inventory Capacity 15 | 8 8 15 15 Average Capacity 13 | 7 8 14 15 Most Carried 15 | 4 7 15 15 Average Carried 9 | 1 3 9 12 Final Capacity 15 | 8 8 15 15 Final Carried 14 | 2 7 14 8 Class Distribution -------------------- 67% | Mutant 28% | Scavenger-Mutant 3% | Scavenger-Tank Dominant Class ---------------- Mutant | -10/Materials Mutant | -9/Materials Scavenger-Mutant | -8/Materials Resources | -11 -10 -9 -8 ----------- Run | Scr Mat Mat Mat Matter Collected 1097 | 220 100 436 341 Remotely . | . . . . Salvage Created 1219 | . 144 537 538 Parts 88 | . 10 50 28 Haulers Intercepted 2 | . . 1 1 Recyclers Shooed 2 | . . . 2 Parts Field Recycled . | . . . . Retrieved Matter . | . . . . Parts Self-Destructed . | . . . . Prevented . | . . . . Kills | -11 -10 -9 -8 ------- Run | Scr Mat Mat Mat Combat Hostiles Destroyed 33 | . 3 20 10 Melee 1 | . . . 1 Guns 10 | . 3 4 3 Cannons 5 | . . 3 2 AOE 15 | . . 13 2 Classes Destroyed 11 | . 3 5 3 Worker 3 | . 1 1 1 Builder 2 | . . 1 1 Hauler 2 | . . 1 1 Recycler 1 | . . . 1 Mechanic 1 | . . . 1 Operator 1 | . 1 . . Watcher 3 | . . 2 1 Swarmer 14 | . . 11 3 Grunt 14 | . 3 7 4 Sentry 4 | . . 2 2 Hunter 1 | . . . 1 Best Kill Streak 8 | . 2 8 3 Combat Bots Only 7 | . 2 7 3 Max Kills in Single Turn 4 | . 1 4 3 Gunslinging . | . . . . Exploded 4 | . . 4 2 Melee 1 | . . . 1 Uniques/NPCs Destroyed . | . . . . Combat | -11 -10 -9 -8 -------- Run | Scr Mat Mat Mat Damage Taken 3024 | . 199 621 2204 Core 662 | . 22 74 566 Absorbed by Shields 159 | . . 159 . Core Remaining (%) 90 | 100 91 81 . Volleys Fired 122 | . 24 43 55 Largest 3 | . 2 2 3 Hottest 131 | . 70 86 131 Shots Fired 204 | . 48 75 81 Gun 166 | . 48 50 68 Cannon 21 | . . 14 7 Launcher 17 | . . 11 6 Special . | . . . . Kinetic 113 | . 24 44 45 Thermal 53 | . 24 6 23 Explosive 17 | . . 11 6 Electromagnetic 21 | . . 14 7 Robot Hit Streak 14 | . 4 10 14 Robot Miss Streak 6 | . 6 6 3 Penetration Max 1 | . . . 1 Secondary Targets 1 | . 1 . . Max Gunslinging Chain 1 | . 1 . . Shots Hit Robots 121 | . 22 36 63 Core Hits 71 | . 9 31 31 Critical Kills . | . . . . Critical Parts Destroyed 1 | . . . 1 Critical Strikes 6 | . 1 1 4 Burn 4 | . 1 1 2 Smash 2 | . . . 2 Melee Attacks 16 | . . . 16 Impact 16 | . . . 16 Slashing . | . . . . Piercing . | . . . . Sneak Attacks . | . . . . Combat Hostiles . | . . . . Follow-up Attacks 1 | . . . 1 Damage Inflicted 3763 | . 300 1555 1908 Guns 1371 | . 300 368 703 Cannons 353 | . . 209 144 Explosions 1610 | . . 978 632 Melee 429 | . . . 429 Ramming . | . . . . Kinetic 1044 | . 187 343 514 Thermal 428 | . 113 126 189 Explosive 1509 | . . 877 632 Electromagnetic 353 | . . 209 144 Impact 429 | . . . 429 Slashing . | . . . . Piercing . | . . . . Highest Corruption 1 | . . 1 . Average Corruption 1 | . . 1 . Corruption Purged . | . . . . Corruption Blocked . | . . . . Effects 3 | . . 3 . Message Errors 1 | . . 1 . Matter Fused 1 | . . 1 . Weapon Failures 1 | . . 1 . Overload Shots . | . . . . Overflow Damage 113 | . . 10 103 Projectiles . | . . . . Explosions 15 | . . 10 5 Melee 98 | . . . 98 Knockbacks 2 | . . . 2 Impact 2 | . . . 2 Kinetic . | . . . . Secondary . | . . . . Self-Inflicted Damage 303 | . . 88 215 Shots 10 | . . 3 7 Rammed . | . . . . Targets Rammed . | . . . . Kicked . | . . . . Crushed . | . . . . Highest Temperature 287 | . 112 97 287 Average Temperature 54 | . 35 27 87 Received Heat Transfer 940 | . 108 193 639 Siege Activations . | . . . . Robots Corrupted . | . . . . Combat Hostiles . | . . . . Parts Fried 2 | . . . 2 Impact Corruptions 5 | . . . 5 Robots Melted . | . . . . Combat Hostiles . | . . . . Parts Melted . | . . . . Heat Transferred 1334 | . 407 298 629 Parts Sabotaged . | . . . . Parts Stolen . | . . . . Parts Stripped . | . . . . Power Chain Reactions 2 | . . 2 . Missiles Intercepted . | . . . . Alert | -11 -10 -9 -8 ------- Run | Scr Mat Mat Mat Peak Influence 772 | . 127 772 530 Initial 262 | . . 53 262 Average 307 | . 68 353 351 Maximum Alert Level 3 | . . 3 2 Low Security (%) 34 | 100 100 37 . Level 1 36 | . . 13 86 Level 2 24 | . . 39 13 Level 3 5 | . . 10 . Level 4 . | . . . . Level 5 . | . . . . High Security . | . . . . Max Security . | . . . . Squads Dispatched 7 | . 2 3 2 Investigation 5 | . 1 3 1 Extermination . | . . . . Reinforcement 2 | . 1 . 1 Assault . | . . . . Garrison . | . . . . Intercept . | . . . . Searches Triggered . | . . . . Construction Impeded 1 | . . . 1 Haulers Reinforced . | . . . . Active Scanning Responses . | . . . . Cargo Convoy Interrupts . | . . . . Stealth | -11 -10 -9 -8 --------- Run | Scr Mat Mat Mat Distress Signals 2 | . 1 . 1 Communications Jammed . | . . . . Distress Signals . | . . . . Times Spotted 53 | . 9 21 23 Peak Tracking Total 6 | . 3 6 6 Tactical Retreats 2 | . . 1 1 Traps | -11 -10 -9 -8 ------- Run | Scr Mat Mat Mat Traps Triggered 1 | . . . 1 Indirectly . | . . . . Trap Hack Attempts . | . . . . Triggered . | . . . . Disarmed . | . . . . Reprogrammed . | . . . . Reused . | . . . . Traps Extracted . | . . . . Installed . | . . . . Triggered . | . . . . Machines | -11 -10 -9 -8 ---------- Run | Scr Mat Mat Mat Machines Disabled 4 | . . 3 1 Max in Single Turn 1 | . . 1 1 Machines Sabotaged . | . . . . Garrisons Compromised . | . . . . Overloaded Fab Kills . | . . . . Hacking | -11 -10 -9 -8 --------- Run | Scr Mat Mat Mat Machines Accessed 8 | . 1 3 4 Terminals 7 | . 1 3 3 Fabricators . | . . . . Repair Stations . | . . . . Recycling Units 1 | . . . 1 Scanalyzers . | . . . . Garrison Access . | . . . . Total Hacks 29 | . 5 17 7 Successful 15 | . 2 9 4 Failed 14 | . 3 8 3 Catastrophic 5 | . . 5 . Database Lockouts . | . . . . Manual . | . . . . Terminals 28 | . 5 17 6 Fabricators . | . . . . Repair Stations . | . . . . Recycling Units 1 | . . . 1 Scanalyzers . | . . . . Garrison Access . | . . . . Terminal Hacks 14 | . 2 9 3 Record 4 | . . 4 . Prototype ID Bank 1 | . . . 1 Alert Level 1 | . . 1 . Investigation Status 1 | . . . 1 Recall Investigation 2 | . 1 1 . Recall Reinforcements 1 | . . 1 . Hauler Manifests 2 | . 1 1 . Zone Layout 2 | . . 1 1 Fabricator Hacks . | . . . . Repair Station Hacks . | . . . . Recycling Unit Hacks 1 | . . . 1 Retrieve Matter 1 | . . . 1 Scanalyzer . | . . . . Garrison Access Hacks . | . . . . Unauthorized Hacks . | . . . . Terminals . | . . . . Fabricators . | . . . . Repair Stations . | . . . . Recycling Units . | . . . . Scanalyzers . | . . . . Garrison Access . | . . . . Data Cores Recovered . | . . . . Used . | . . . . Hacking Detections 6 | . 1 3 2 Full Trace Events 4 | . 1 3 . Feedback Events 1 | . . 1 . Corruption 1 | . . 1 . Feedback Blocked . | . . . . Robot Schematics Acquired . | . . . . Robots Built . | . . . . Authchips . | . . . . Time . | . . . . Total Robot Build Rating . | . . . . Part Schematics Acquired . | . . . . Parts Built . | . . . . Authchips . | . . . . Time . | . . . . Total Part Build Rating . | . . . . Parts Repaired . | . . . . Time . | . . . . Parts Recycled . | . . . . Recycled Matter . | . . . . Retrieved Matter . | . . . . Retrieved Components . | . . . . Parts Scanalyzed . | . . . . Part Schematics Acquired . | . . . . Parts Damaged . | . . . . Bothacking | -11 -10 -9 -8 ------------ Run | Scr Mat Mat Mat Used RIF Installer . | . . . . Robots Hacked . | . . . . Non-combat . | . . . . Combat . | . . . . Robot Hacks Applied . | . . . . Relay Couplers Released . | . . . . Fabnet Peak Effective % . | . . . . Robots Rewired . | . . . . Allies Hacked . | . . . . Hacks Repelled . | . . . . Allies | -11 -10 -9 -8 -------- Run | Scr Mat Mat Mat Total Allies . | . . . . Largest Group . | . . . . Highest-Rated Group . | . . . . Highest-Rated Ally . | . . . . Total Orders . | . . . . Ally Attacks . | . . . . Total Damage . | . . . . Kills . | . . . . Allies Corrupted . | . . . . Allies Melted . | . . . . Intel | -11 -10 -9 -8 ------- Run | Scr Mat Mat Mat Robot Analysis Total . | . . . . Derelict Logs Recovered . | . . . . Drone Launches . | . . . . Drone Recoveries . | . . . . Exploration | -11 -10 -9 -8 ------------- Run | Scr Mat Mat Mat Turns Passed 1689 | 42 217 855 575 Spaces Moved 789 | 40 151 388 210 Core 12 | 8 . . 4 Treads . | . . . . Legs 594 | . . 388 206 Wheels 183 | 32 151 . . Hover . | . . . . Flight . | . . . . Fastest Speed 50 | 50 90 120 100 Average Speed 150 | 82 90 176 157 Slowest Speed 190 | 90 90 190 190 Overloaded Moves . | . . . . Propulsion Burnouts . | . . . . Robots Hopped . | . . . . Cave-ins Triggered . | . . . . Exploration Rate (%) 22 | 3 25 35 25 Regions Visited 3 Branch Regions . Pre-discovered Areas . | . . . . Known Exits Taken . | . . . . Unknown Exits Taken 3 | 1 1 1 . Scrap Searched . | . . . . Spaces Dug . | . . . . Terrain Destroyed 175 | . . 99 76 Melee . | . . . . Projectile 1 | . . . 1 AOE 174 | . . 99 75 Terrain Rammed . | . . . . Walls Destroyed . | . . . . Machines Disabled . | . . . . Actions | -11 -10 -9 -8 --------- Run | Scr Mat Mat Mat Total 1070 | 49 183 481 357 Wait 45 | . . 11 34 Move 786 | 39 150 387 210 Hop . | . . . . Pick Up 40 | 6 7 15 12 Fast Attach . | . . . . Attach 29 | 4 2 8 15 Detach . | . . . . Swap 25 | . . 14 11 Drop 8 | . . 3 5 Fire 122 | . 24 43 55 Melee 15 | . . . 15 Ram . | . . . . Kick . | . . . . Crush . | . . . . Escape Stasis . | . . . . Rewire . | . . . . Trap . | . . . . Miscellaneous . | . . . . Route ------- -11/Scrapyard -10/Materials -9/Materials (discovered 2 exits: *Mat / [Min]) -8/Materials History --------- Turn | Location | Event 16 | -11/Scrapyard | Discovered new exit (range 15) 43 | -11/Scrapyard | Entered Materials 241 | -10/Materials | Discovered new exit (range 10) 260 | -10/Materials | Entered another Materials area 260 | -9/Materials | Evolved 2 slots: Propulsion x1, Utility x1 305 | -9/Materials | Build established: Mutant 624 | -9/Materials | Destroyed 7 combat bots 745 | -9/Materials | Destroyed 7 combat bots 847 | -9/Materials | Discovered new exit (range 15) 991 | -9/Materials | Discovered new exit (range 16) 1115 | -9/Materials | Entered another Materials area 1115 | -8/Materials | Evolved 2 slots: Utility x1, Weapon x1 1304 | -8/Materials | Lost 4 parts (1n1u2w) 1588 | -8/Materials | Lost 4 parts (1p2n1u) 1644 | -8/Materials | Core integrity fell below 50% 1673 | -8/Materials | Core integrity fell below 20% 1690 | -8/Materials | Destroyed by G-47 Trooper with Particle Gun Last Messages --------------- 01668_ K-01 Serf collects debris. 01670_ Destroyed Lgt. Nuclear Core. 01673_ K-01 Serf collects debris. 01673_ Ion Engine destroyed. 01674_ K-01 Serf collects debris. 01678_ Destroyed Imp. Heat Sink. 01679_ ALERT: Construction progress impeded, dispatching reinforcements to local area. 01681_ M-13 Machinist destroyed. 01681_ U-05 Engineer destroyed. 01681_ Mni. Grenade Launcher destroyed. 01681_ Destroyed Mni. Grenade Launcher. 01681_ K-01 Serf destroyed. 01681_ K-01 Serf collects debris. 01682_ The unstable cave ceiling collapses. 01684_ K-01 Serf collects debris. 01686_ The unstable cave ceiling collapses. 01687_ K-01 Serf destroyed. 01689_ Hvy. Mace destroyed. 01689_ Minigun destroyed. Map ----- +----------------------------------------------------+ | ??????????????????????????# !!! #????? | | ??????????????????????????# !! !#????? | | ??????????????????????????# "" ##########????? | | ????????????############### "" #???????????? | | ????????????? "T #???????????? | | ????????????? "" / #???????????? | | ????????????? [ "" #???????????? | | ???????????? [[[ #???????????? | | ????????????? [%[! #???????????? | | ???????????????############### #???????????? | | ??????????????? #??# #########???????????? | | ??????????????? #??# """ #????############???? | | ??????????????? #??# """ #????# ???? | | ??????????????? #??# """ [ #????# """ """ ""???? | | ??????????????? #??#/ /[ #????# """ """ ""???? | | ??????????????? #??# """ #????# """ """ ""???? | | ??????????????? #??# """ //##???# ???? | | ??????????????? #??# """ / #???# ???? | | ???????????????###??# ##???############???? | | ????????????????????####+#########?????????# ???? | | ??????????????????????# + #???????????????? | | ??????????????????????# # """ #???????????????? | | ??????????????????????#=! # "R" #???????????????? | | ??????????????????????#%= + " " #???????????????? | | ????????????????????###*%=# #???????????????? | | ????????????????????# !@ ! ! #???????????????? | | ????????????????????# # # ######???????????????? | | ????????????????????# # gg ##????????????????????? | | ????????????????????# gg ?????????????????????? | | ????????????????????# %!%| ????????????????????? | | ????????????????????# *%= ##???????????????????? | | ????????????????????## #????????????????????? | | ????????????????????? ##????????????????????? | | ???????????????????? # # ?????????????????????? | | ???????????????????? # k # ?????????????????????? | | ??????????????????? # # ?????????????????????? | | ??????????????????? ?# # ?????????????????????? | | ?????????????????? ?+ + ?????????????????????? | | ?????????????????? ??# # "????????????????????? | | ??????????????????????# #?"????????????????????? | | ??????????????????????# ???????????????????????? | | ?????????????????????? ???????????????????????? | | ??????????????????????? ???????????????????????? | | ?????????????????????????????????????????????????? | | ?????????????????????????????????????????????????? | | ?????????????????????????????????????????????????? | | ?????????????????????????????????????????????????? | | ?????????????????????????????????????????????????? | | ?????????????????????????????????????????????????? | | ?????????????????????????????????????????????????? | +----------------------------------------------------+ Best States ------------- Heat Dissipation 31 Energy Generation 14 Energy Capacity 275 Matter Stores 300 Matter Capacity 300 Sight Range 16 Terrain Scan Density 10 Additional Mass Support 9 Armor Coverage 450 Evasion (%) 55 Offensive Hacking 10 Item Schematics ----------------- None Robot Schematics ------------------ None Fabricated ------------ Nothing Alien Tech Used ----------------- None Achievements -------------- None Challenges ------------ None Game ------ Seed PrecisionMolecularClaws Manual? 1 Play Time 00:42:53 Cumulative 16.4 hours Start 2022.11.15 @ 20:59:01 End 2022.11.16 @ 00:09:02 Sessions 3 Manual Loads 0 Difficulty Rogue Special Mode None Game No. 14 Rogue 14 Adventurer 0 Explorer 0 Win Type - Total 0 Types 0/0/0/0/0/0/0/0/0 Lore% 6 Gallery% 13 Achievement% 14 Wizard Run 0 Options --------- ASCII 0 Keyboard 0 Movement Mouse Keybinds 0 Fullscreen 1 Font 24/Terminus Map View 76x50 Tactical HUD 1 Map Filters NONE Filters NONE Steam 1 RUN: 1b78b7f2-8c9f-48b0-8e90-23111fabbba3